bitfinex/quotes_SOLUSD_20220227
["timestamp","ask_amount","ask_price","bid_price","bid_amount"]
[1645977623583,109.4,91.367,91.281,0.25]
[1645977623783,0.25,91.366,91.28,15.81]
[1645977623984,109.4,91.359,91.28,15.81]
[1645977624184,109.4,91.359,91.252,2.74678921]
[1645977624185,4.63,91.358,91.252,2.74678921]
[1645977624384,4.63,91.358,91.23,4.38]
[1645977624385,109.4,91.357,91.24,15.81]
[1645977624587,4.631,91.356,91.24,15.81]
[1645977624786,4.381,91.356,91.241,74.29998405]
[1645977624988,0.25,91.355,91.242,4.381]
[1645977625184,0.25,91.355,91.244,109.4]
[1645977625486,0.25,91.355,91.245,10.381]
[1645977625687,0.25,91.355,91.26,15.81]
[1645977625885,0.25,91.366,91.261,51.19381393]
[1645977626086,16.4372,91.36,91.261,51.19381393]
[1645977626386,0.25,91.359,91.261,51.19381393]
[1645977626585,4.38,91.358,91.261,51.19381393]
[1645977626784,0.25,91.357,91.261,51.19381393]
[1645977626986,4.38,91.356,91.26,15.81]
[1645977627185,0.25,91.355,91.26,15.81]
[1645977627386,16.4389,91.35,91.26,15.81]
[1645977627585,4.38,91.349,91.26,15.81]
[1645977627785,4.38,91.365,91.26,15.81]
[1645977628588,16.4413,91.34,91.26,15.81]
[1645977628787,4.381,91.339,91.26,15.81]
[1645977628988,113.781,91.339,91.234,23.8017]
[1645977629290,121.81778921,91.339,91.234,23.8017]
[1645977629489,2.74678921,91.338,91.234,23.8017]
[1645977629689,4.381,91.337,91.234,23.8017]
[1645977629888,109.4,91.336,91.235,27.43299814]
[1645977630089,4.381,91.335,91.235,27.43299814]
[1645977630290,7.12778921,91.335,91.235,27.43299814]
[1645977630692,2.74678921,91.334,91.234,23.8017]
[1645977630891,4.631,91.333,91.234,23.8017]
[1645977631293,109.4,91.309,91.234,23.8017]
[1645977631493,0.25,91.308,91.23,15.81]
[1645977631692,0.25,91.308,91.213,27.37989443]
[1645977631693,2.99678921,91.308,91.213,27.37989443]
[1645977631892,116.52978921,91.307,91.213,27.37989443]
[1645977632093,0.25,91.306,91.213,27.37989443]
[1645977632295,2.99678921,91.306,91.213,27.37989443]
[1645977632493,109.4,91.299,91.213,27.37989443]
[1645977632697,0.25,91.298,91.21,15.81]
[1645977633298,0.25,91.298,91.203,13.70546717]
[1645977633494,0.25,91.298,91.195,2.74678921]
[1645977633495,109.4,91.296,91.195,2.74678921]
[1645977633694,0.25,91.295,91.198,32.15202424]
[1645977633895,109.4,91.289,91.195,2.74678921]
[1645977634095,0.25,91.288,91.188,13.70546717]
[1645977634298,4.383,91.287,91.188,13.70546717]
[1645977634496,0.25,91.286,91.188,13.70546717]
[1645977634795,4.383,91.285,91.188,13.70546717]
[1645977634996,109.65,91.284,91.18,15.81]
[1645977635197,109.4,91.269,91.173,13.70546717]
[1645977635497,4.634,91.268,91.16,15.81]
[1645977635698,4.634,91.268,91.141,47.8157]
[1645977635904,132.5914,91.267,91.14,15.81]
[1645977636098,0.25,91.266,91.14,15.81]
[1645977636299,109.4,91.259,91.141,30.2372376]
[1645977636501,109.4,91.249,91.141,30.2372376]
[1645977636700,4.636,91.248,91.13,15.81]
[1645977636899,109.4,91.247,91.13,15.81]
[1645977637099,4.636,91.246,91.13,15.81]
[1645977637300,109.4,91.245,91.13,15.81]
[1645977637498,109.4,91.229,91.13,15.81]
[1645977637699,4.636,91.228,91.131,33.28299432]
[1645977638502,16.4663,91.2,91.131,33.28299432]
[1645977638700,0.25,91.199,91.112,2.74678921]
[1645977638900,0.25,91.199,91.113,6.25]
[1645977639108,0.25,91.199,91.113,0.25]
[1645977639302,0.25,91.199,91.113,2.99678921]
[1645977639502,0.25,91.199,91.114,13.1248005]
[1645977639702,48.656,91.219,91.115,32.22242891]
[1645977640007,48.656,91.219,91.116,13.1248005]
[1645977640201,48.656,91.219,91.117,0.25]
[1645977640403,48.656,91.219,91.117,2.99678921]
[1645977640902,48.656,91.219,91.118,2.74678921]
[1645977641107,48.656,91.219,91.119,0.25]
[1645977641503,48.656,91.219,91.12,2.74678921]
[1645977641704,48.656,91.219,91.121,0.25]
[1645977641907,16.4643,91.21,91.121,0.25]
[1645977642106,32.2743,91.21,91.11,2.74678921]
[1645977642308,0.25,91.209,91.11,2.74678921]
[1645977642606,109.65,91.209,91.11,2.74678921]
[1645977642806,2.99678921,91.209,91.101,13.1248005]
[1645977643707,16.466,91.2,91.101,13.1248005]
[1645977643905,0.25,91.199,91.101,13.1248005]
[1645977644306,0.25,91.199,91.09,19.21138921]
[1645977645009,16.4678,91.19,91.09,19.21138921]
[1645977645306,0.25,91.189,91.09,19.21138921]
[1645977645507,0.25,91.189,91.093,16.5011]
[1645977645908,4.388,91.188,91.093,16.5011]
[1645977646111,0.25,91.187,91.093,16.5011]
[1645977646312,0.25,91.189,91.094,0.25]
[1645977646711,0.25,91.189,91.094,26.39346537]
[1645977646910,0.25,91.189,91.094,26.14346537]
[1645977647511,16.4698,91.18,91.094,26.14346537]
[1645977647712,0.25,91.179,91.094,26.14346537]
[1645977648113,109.65,91.179,91.094,26.14346537]
[1645977648314,109.4,91.177,91.094,26.14346537]
[1645977648613,0.25,91.176,91.094,26.14346537]
[1645977649413,0.25,91.179,91.094,26.14346537]
[1645977650215,32.2797,91.18,91.094,26.14346537]
[1645977650216,15.81,91.18,91.094,26.14346537]
[1645977650413,47.6056,91.187,91.095,0.25]
[1645977650813,47.6056,91.187,91.094,26.14346537]
[1645977651615,0.25,91.186,91.094,26.14346537]
[1645977652217,109.65,91.186,91.094,26.14346537]
[1645977653316,109.4,91.179,91.094,26.14346537]
[1645977653519,16.4698,91.18,91.094,26.14346537]
[1645977653520,109.4,91.169,91.094,26.14346537]
[1645977653717,0.25,91.168,91.086,48.2243]
[1645977654717,0.25,91.168,91.087,28.2926956]
[1645977654924,16.4698,91.18,91.087,28.2926956]
[1645977654925,4.389,91.182,91.088,0.25]
[1645977655125,100.4614,91.219,91.104,30.96630403]
[1645977655325,23.457,91.219,91.105,109.65]
[1645977655525,23.9694,91.218,91.11,15.81]
[1645977655723,26.71618921,91.218,91.111,0.25]
[1645977656125,2.74678921,91.217,91.111,2.99678921]
[1645977656325,2.74678921,91.217,91.111,0.25]
[1645977656927,2.74678921,91.217,91.111,6.25]
[1645977657366,23.9694,91.218,91.111,23.21358971]
[1645977657568,23.9694,91.218,91.111,39.68528971]
[1645977658365,2.74678921,91.235,91.122,26.82405818]
[1645977658575,16.4597,91.24,91.13,15.81]
[1645977658766,0.25,91.239,91.131,6.25]
[1645977659069,0.25,91.239,91.131,20.4668005]
[1645977659270,0.25,91.239,91.14,16.4575]
[1645977659466,0.25,91.239,91.141,30.35516462]
[1645977659666,24.7238,91.239,91.142,24.0028]
[1645977659866,24.7238,91.239,91.143,0.25]
[1645977660267,23.2952,91.238,91.143,0.25]
[1645977660471,0.25,91.237,91.144,2.74678921]
[1645977660871,2.99678921,91.237,91.142,24.0028]
[1645977661071,109.4,91.229,91.142,24.0028]
[1645977661272,0.25,91.228,91.142,24.0028]
[1645977661471,109.4,91.227,91.142,24.0028]
[1645977661675,0.25,91.226,91.142,24.0028]
[1645977661871,109.4,91.225,91.142,24.0028]
[1645977662072,0.25,91.224,91.142,24.0028]
[1645977662271,2.99678921,91.224,91.142,24.0028]
[1645977662473,32.2724,91.22,91.142,24.0028]
[1645977662672,2.30148891,91.219,91.142,24.0028]
[1645977666081,0.25,91.219,91.142,24.0028]
[1645977667675,1.67338528,91.223,91.142,24.0028]
[1645977667875,27.22058921,91.239,91.143,115.65]
[1645977668074,2.15457865,91.248,91.143,115.65]
[1645977668075,15.81,91.26,91.143,133.65358971]
[1645977668275,1.68298663,91.259,91.143,24.25358971]
[1645977668505,1.68298663,91.259,91.144,18.00358971]
[1645977668674,1.68298663,91.259,91.145,115.65]
[1645977668875,47.8828,91.267,91.151,109.4]
[1645977669075,47.8828,91.267,91.162,30.46515084]
[1645977669281,47.8828,91.267,91.163,140.0985]
[1645977669478,47.8828,91.267,91.163,142.84528921]
[1645977669679,47.8828,91.267,91.165,109.4]
[1645977669976,47.8828,91.267,91.17,15.81]
[1645977670276,0.25,91.266,91.171,21.2568005]
[1645977670475,0.25,91.266,91.18,16.4494]
[1645977670676,0.25,91.266,91.181,26.59990697]
[1645977670881,0.25,91.266,91.182,23.3201]
[1645977671077,0.25,91.266,91.183,0.25]
[1645977671881,47.8828,91.267,91.183,0.25]
[1645977672077,47.8828,91.267,91.183,2.99678921]
[1645977672280,47.8828,91.267,91.19,16.4483]
[1645977672477,47.8828,91.267,91.191,0.25]
[1645977672677,1.94121222,91.288,91.191,0.25]
[1645977672879,15.81,91.3,91.191,162.66768971]
[1645977673079,1.62826974,91.299,91.192,2.74678921]
[1645977673278,0.25,91.298,91.193,138.9805]
[1645977673480,0.25,91.298,91.193,154.2373005]
[1645977673680,0.25,91.298,91.195,143.56202028]
[1645977673884,0.25,91.298,91.197,109.4]
[1645977674081,0.25,91.298,91.198,6.25]
[1645977674282,1.62826974,91.299,91.199,109.4]
[1645977674485,4.383,91.324,91.211,109.4]
[1645977674681,15.81,91.34,91.213,109.4]
[1645977674882,2.14614121,91.339,91.214,6.25]
[1645977675082,4.382,91.338,91.214,15.5068005]
[1645977675381,2.16923822,91.329,91.215,15.2568005]
[1645977675580,4.382,91.328,91.216,6.25]
[1645977675783,0.25,91.327,91.216,6.25]
[1645977676000,0.25,91.328,91.217,15.2568005]
[1645977676181,2.04673468,91.328,91.218,6.25]
[1645977676680,2.04673468,91.328,91.22,54.7947]
[1645977676883,111.44673468,91.328,91.221,23.4316]
[1645977677083,109.4,91.326,91.221,23.1816]
[1645977677288,109.4,91.324,91.221,23.1816]
[1645977677484,15.81,91.31,91.221,23.1816]
[1645977677686,109.4,91.308,91.221,23.1816]
[1645977677883,109.4,91.306,91.212,22.7021]
[1645977678181,6.10904118,91.305,91.212,22.7021]
[1645977678381,0.25,91.304,91.212,22.7021]
[1645977678580,15.81,91.3,91.212,22.7021]
[1645977678783,6.40363094,91.299,91.213,34.56912633]
[1645977678980,16.4498,91.29,91.212,22.7021]
[1645977679181,26.90584448,91.289,91.212,22.7021]
[1645977679382,1.76237409,91.288,91.212,22.7021]
[1645977680281,2.74678921,91.287,91.212,22.7021]
[1645977680481,4.83547456,91.287,91.212,22.7021]
[1645977680681,109.4,91.279,91.192,24.0003]
[1645977680883,2.07207161,91.278,91.193,0.25]
[1645977681282,4.81886082,91.278,91.193,0.25]
[1645977681483,25.99298921,91.277,91.193,0.25]
[1645977681681,1.73056217,91.276,91.193,0.25]
[1645977681881,4.47735138,91.276,91.193,0.25]
[1645977682581,2.74678921,91.275,91.193,0.25]
[1645977682782,2.74678921,91.275,91.192,24.0003]
[1645977682783,0.25,91.274,91.192,24.0003]
[1645977682985,109.4,91.269,91.192,24.0003]
[1645977683184,2.08448816,91.268,91.192,24.0003]
[1645977686190,109.4,91.259,91.192,24.0003]
[1645977686390,15.81,91.25,91.192,24.0003]
[1645977686591,2.18792656,91.249,91.192,24.0003]
[1645977686791,0.25,91.248,91.192,24.0003]
[1645977688597,0.25,91.248,91.186,24.5401]
[1645977689596,2.17940067,91.248,91.186,24.5401]
[1645977691412,2.17940067,91.248,91.151,24.1767]
[1645977691612,109.4,91.239,91.151,24.1767]
[1645977691814,16.4587,91.24,91.151,24.1767]
[1645977691815,15.81,91.23,91.151,24.1767]
[1645977692111,1.59932462,91.219,91.151,24.1767]
[1645977692311,15.81,91.22,91.151,24.1767]
[1645977692513,2.21234132,91.219,91.152,29.19839767]
[1645977692711,2.21234132,91.219,91.151,24.1767]
[1645977692917,2.74678921,91.218,91.151,24.1767]
[1645977693115,2.74678921,91.218,91.116,16.4089]
[1645977693413,4.636,91.217,91.117,46.4357]
[1645977693612,2.11576478,91.216,91.117,46.4357]
[1645977693814,2.17558405,91.209,91.118,31.85896886]
[1645977694014,0.25,91.208,91.118,31.85896886]
[1645977694314,0.25,91.208,91.119,24.42946717]
[1645977694514,0.25,91.208,91.12,0.25]
[1645977694814,0.25,91.208,91.121,4.386]
[1645977695014,0.25,91.208,91.122,0.25]
[1645977695215,0.25,91.208,91.123,4.386]
[1645977695416,2.17558405,91.209,91.124,0.25]
[1645977695615,2.17558405,91.209,91.13,16.459]
[1645977695815,2.17558405,91.209,91.131,0.25]
[1645977696217,2.17558405,91.209,91.13,16.459]
[1645977696817,0.25,91.208,91.13,16.459]
[1645977698318,2.17558405,91.209,91.13,16.459]
[1645977698519,30.15466698,91.247,91.131,126.44025638]
[1645977698722,15.81,91.24,91.15,16.4558]
[1645977698920,1.78683322,91.239,91.151,31.19423265]
[1645977699119,1.78683322,91.239,91.152,23.5419]
[1645977699522,1.78683322,91.239,91.153,0.25]
[1645977699723,0.25,91.238,91.153,0.25]
[1645977701423,1.78683322,91.239,91.153,0.25]
[1645977703023,0.25,91.238,91.153,0.25]
[1645977704723,2.74678921,91.237,91.153,0.25]
[1645977705025,0.25,91.236,91.152,23.5419]
[1645977705423,2.99678921,91.236,91.153,34.00908493]
[1645977705923,2.13917617,91.234,91.153,34.00908493]
[1645977706122,15.81,91.23,91.153,34.00908493]
[1645977706322,2.15344149,91.229,91.153,34.00908493]
[1645977706524,0.25,91.228,91.153,34.00908493]
[1645977706923,2.15344149,91.229,91.154,0.25]
[1645977708226,0.25,91.228,91.154,0.25]
[1645977709424,0.25,91.228,91.153,34.00908493]
[1645977709625,0.25,91.228,91.152,23.5419]
[1645977709924,1.88382179,91.228,91.152,23.5419]
[1645977710328,1.88382179,91.228,91.132,16.79025638]
[1645977710626,2.00039699,91.226,91.133,52.02814506]
[1645977710829,0.25,91.225,91.133,54.77493427]
[1645977711229,0.25,91.225,91.134,2.74678921]
[1645977711428,0.25,91.225,91.135,0.25]
[1645977711828,0.25,91.225,91.136,2.74678921]
[1645977712028,0.25,91.225,91.137,0.25]
[1645977712628,15.81,91.22,91.137,0.25]
[1645977712828,24.78188726,91.219,91.137,0.25]
[1645977713027,1.97309151,91.218,91.137,0.25]
[1645977713228,0.25,91.217,91.134,0.25]
[1645977713629,0.25,91.217,91.135,37.8340586]
[1645977713827,1.97309151,91.218,91.136,0.25]
[1645977714028,1.97309151,91.218,91.136,14.29346717]
[1645977714227,1.97309151,91.218,91.137,16.79025638]
[1645977714427,1.97309151,91.218,91.138,0.25]
[1645977714629,1.97309151,91.218,91.138,17.04025638]
[1645977714828,1.97309151,91.218,91.139,20.04346717]
[1645977715029,1.97309151,91.218,91.14,0.25]
[1645977715229,0.25,91.217,91.14,17.04025638]
[1645977715430,0.25,91.217,91.141,14.04346717]
[1645977715632,0.25,91.217,91.142,0.25]
[1645977716032,0.25,91.217,91.143,14.04346717]
[1645977716229,0.25,91.217,91.144,0.25]
[1645977717630,0.25,91.217,91.142,0.25]
[1645977718231,0.25,91.217,91.141,6.25]
[1645977719035,0.25,91.217,91.141,0.25]
[1645977719734,0.25,91.217,91.142,2.74678921]
[1645977719934,0.25,91.217,91.143,0.25]
[1645977720334,0.25,91.217,91.143,2.99678921]
[1645977720534,0.25,91.217,91.15,16.4555]
[1645977720737,1.90025129,91.239,91.152,109.4]
[1645977720936,2.15164139,91.267,91.154,109.4]
[1645977721140,2.15164139,91.267,91.156,109.4]
[1645977721335,2.15164139,91.267,91.161,109.4]
[1645977721535,2.15164139,91.267,91.18,16.45]
[1645977721736,2.15164139,91.267,91.182,35.37765206]
[1645977722038,2.15164139,91.267,91.183,6.25]
[1645977722235,0.25,91.266,91.183,6.25]
[1645977722436,0.25,91.266,91.182,35.37765206]
[1645977722637,24.47392658,91.265,91.182,35.37765206]
[1645977722837,6.50194904,91.264,91.182,35.37765206]
[1645977723036,1.61973789,91.259,91.182,35.37765206]
[1645977723236,0.25,91.258,91.182,35.37765206]
[1645977723436,1.97640564,91.257,91.182,35.37765206]
[1645977723640,16.457,91.25,91.182,35.37765206]
[1645977723837,1.64208301,91.249,91.182,35.37765206]
[1645977724038,111.29208301,91.249,91.182,35.37765206]
[1645977724237,111.29208301,91.249,91.153,24.102]
[1645977724238,109.65,91.249,91.153,24.102]
[1645977724440,1.97158491,91.246,91.153,24.102]
[1645977724640,4.635,91.245,91.154,0.25]
[1645977724840,2.08145782,91.243,91.154,0.25]
[1645977725039,2.05386026,91.229,91.153,24.102]
[1645977725239,15.81,91.23,91.153,24.102]
[1645977725240,1.85747728,91.227,91.154,35.29323408]
[1645977725439,0.25,91.226,91.154,35.29323408]
[1645977725641,0.25,91.226,91.15,8.7]
[1645977725841,2.99678921,91.226,91.15,8.7]
[1645977726040,109.4,91.224,91.15,8.7]
[1645977726247,109.4,91.209,91.15,8.7]
[1645977726440,4.636,91.208,91.15,8.7]
[1645977726641,109.4,91.207,91.15,8.7]
[1645977726840,4.636,91.206,91.15,8.7]
[1645977727041,109.4,91.205,91.15,8.7]
[1645977727242,109.4,91.189,91.15,8.7]
[1645977727441,0.25,91.188,91.15,8.7]
[1645977727641,2.3925327,91.188,91.15,8.7]
[1645977730046,4.386,91.216,91.15,8.7]
[1645977730246,1.75840757,91.208,91.15,8.7]
[1645977730847,74.5792,91.281,91.15,8.7]
[1645977730848,15.81,91.23,91.15,8.7]
[1645977731043,4.386,91.244,91.15,8.7]
[1645977731044,15.81,91.24,91.15,8.7]
[1645977731448,0.25,91.208,91.15,8.7]
[1645977732047,0.25,91.208,91.139,24.2846]
[1645977732268,2.28808716,91.208,91.139,24.2846]
[1645977733648,32.2709,91.23,91.139,24.2846]
[1645977733849,4.386,91.246,91.14,6.25]
[1645977734055,2.00598325,91.239,91.141,27.5959]
[1645977734251,1.61162023,91.244,91.142,0.25]
[1645977734451,15.81,91.24,91.143,4.386]
[1645977734650,2.06191301,91.239,91.144,0.25]
[1645977734850,4.636,91.238,91.142,0.25]
[1645977735051,109.4,91.237,91.142,0.25]
[1645977735251,109.4,91.235,91.142,0.25]
[1645977735452,15.81,91.22,91.142,0.25]
[1645977735651,109.4,91.218,91.141,23.2099]
[1645977735851,0.25,91.217,91.141,23.2099]
[1645977736056,1.84525386,91.217,91.141,23.2099]
[1645977738261,109.4,91.209,91.088,43.40645019]
[1645977738459,5.0,91.208,91.058,16.97795485]
[1645977738656,5.0,91.208,91.044,16.1232]
[1645977738657,17.53325639,91.093,91.044,16.1232]
[1645977738857,17.53325639,91.093,91.0,54.924]
[1645977739064,2.31358305,91.092,90.999,16.6413]
[1645977739260,15.81,91.08,90.953,16.3283]
[1645977739458,111.48594886,91.079,90.953,16.3283]
[1645977739660,111.48594886,91.079,90.922,3.877147]
[1645977739661,4.394,91.078,90.922,3.877147]
[1645977739880,2.10877321,91.059,90.922,3.877147]
[1645977740079,15.81,91.05,90.922,3.877147]
[1645977740283,115.74661084,91.049,90.943,26.99059675]
[1645977740482,1.77751081,91.048,90.943,26.99059675]
[1645977740683,197.58,91.04,90.943,26.99059675]
[1645977740882,15.81,91.03,90.943,26.99059675]
[1645977741082,2.19134324,91.029,90.945,26.22738576]
[1645977741382,47.961,91.092,90.974,31.87039753]
[1645977741682,1.91440431,91.069,90.974,31.87039753]
[1645977741885,47.961,91.092,90.974,31.87039753]
[1645977741886,15.81,91.06,90.975,2.74678921]
[1645977742081,1.68903895,91.059,90.975,53.5227642]
[1645977742280,47.961,91.092,90.975,53.5227642]
[1645977742281,0.25,91.058,90.976,26.22738576]
[1645977742485,15.81,91.06,90.976,53.5227642]
[1645977742682,1.97646827,91.059,90.976,28.97417497]
[1645977742983,1.97646827,91.059,90.974,31.87039753]
[1645977743181,4.394,91.058,90.947,2.74678921]
[1645977743383,109.4,91.049,90.947,2.74678921]
[1645977743584,16.4981,91.03,90.901,0.54983638]
[1645977743782,2.06134989,91.029,90.91,16.4958]
[1645977743981,71.1426,91.047,90.936,2.74678921]
[1645977744182,1.83697794,91.046,90.945,31.80965748]
[1645977745183,7.14078921,91.045,90.945,31.80965748]
[1645977745583,2.74678921,91.044,90.945,31.80965748]
[1645977745783,16.4983,91.02,90.945,31.80965748]
[1645977745983,15.81,91.01,90.945,31.80965748]
[1645977746182,2.4330881,91.009,90.945,31.80965748]
[1645977746386,2.4330881,91.009,90.972,0.00106273]
[1645977746586,4.396,91.008,90.972,0.00106273]
[1645977746783,0.25,91.007,90.972,0.00106273]
[1645977746985,16.5024,91.0,90.972,0.00106273]
[1645977747183,15.81,90.99,90.972,0.00106273]
[1645977747387,6.842006,90.989,90.972,0.00106273]
[1645977747783,2.446006,90.989,90.972,0.00106273]
[1645977748385,90.0,90.988,90.944,0.02439153]
[1645977748585,2.10933638,90.987,90.944,0.02439153]
[1645977748783,0.25,90.986,90.944,0.02439153]
[1645977749282,0.25,90.986,90.944,0.00439153]
[1645977749483,2.74678921,90.985,90.944,0.00439153]
[1645977749685,15.81,90.98,90.944,0.00439153]
[1645977749888,1.89266864,90.979,90.944,0.00439153]
[1645977750384,4.63945785,90.979,90.944,0.00439153]
[1645977750584,13.21,90.97,90.944,0.00439153]
[1645977750783,1.93947767,90.969,90.944,0.00439153]
[1645977750986,114.08626688,90.969,90.944,0.00439153]
[1645977751185,109.4,90.967,90.944,0.00439153]
[1645977751386,6.76826127,90.966,90.944,0.00439153]
[1645977751686,5.11805048,90.966,90.944,0.00439153]
[1645977751885,2.12126127,90.966,90.944,0.00439153]
[1645977752687,2.74678921,90.965,90.944,0.00439153]
[1645977753086,2.12126127,90.966,90.944,0.00439153]
[1645977754991,0.25,90.965,90.944,0.00439153]
[1645977757793,2.12126127,90.966,90.944,0.00439153]
[1645977757997,2.05121714,90.986,90.944,0.00439153]
[1645977758195,13.21,91.0,90.944,0.00439153]
[1645977758394,2.02469283,90.999,90.944,0.00439153]
[1645977759394,0.25,90.998,90.944,0.00439153]
[1645977759593,0.25,90.998,90.909,27.53730564]
[1645977760595,0.25,90.998,90.91,16.4974]
[1645977760994,0.25,90.998,90.909,27.53730564]
[1645977761195,109.4,90.996,90.909,27.53730564]
[1645977761394,109.4,90.994,90.909,27.53730564]
[1645977761595,109.4,90.979,90.909,27.53730564]
[1645977761797,13.21,90.97,90.909,27.53730564]
[1645977761998,2.2771211,90.969,90.909,27.53730564]
[1645977762194,0.25,90.969,90.909,27.53730564]
[1645977762799,1.92942243,91.005,90.909,27.53730564]
[1645977763796,4.397,91.007,90.909,27.53730564]
[1645977763797,7.14378921,91.03,90.91,112.14678921]
[1645977763996,7.14378921,91.03,90.911,2.93637723]
[1645977764195,2.03318792,91.033,90.911,5.68316644]
[1645977764396,13.21,91.04,90.912,8.74678921]
[1645977764597,2.04914129,91.043,90.913,109.65]
[1645977764797,2.04914129,91.043,90.94,16.4935]
[1645977764998,2.04914129,91.043,90.942,29.33862765]
[1645977765198,2.04914129,91.043,90.943,6.0]
[1645977765696,2.04914129,91.043,90.944,2.74678921]
[1645977765898,0.25,91.042,90.945,6.25]
[1645977766099,13.21,91.03,90.942,29.33862765]
[1645977766299,4.646,91.029,90.942,29.33862765]
[1645977766600,1.86375877,91.028,90.942,29.33862765]
[1645977766803,0.25,91.027,90.942,29.33862765]
[1645977767200,2.99678921,91.027,90.942,29.33862765]
[1645977767402,0.25,91.027,90.942,29.33862765]
[1645977767601,13.21,91.03,90.942,29.33862765]
[1645977767801,13.21,91.03,90.943,6.0]
[1645977768006,13.21,91.03,90.942,29.33862765]
[1645977768203,2.74678921,91.06,90.951,109.4]
[1645977768402,2.74678921,91.06,90.952,6.25]
[1645977768604,4.4056245,91.064,90.952,6.25]
[1645977768802,4.4056245,91.064,90.944,4.395]
[1645977769003,54.9665,91.09,90.942,29.33862765]
[1645977769004,4.74996659,91.044,90.942,29.33862765]
[1645977769402,2.74678921,91.043,90.942,29.33862765]
[1645977769602,1.97320766,91.039,90.942,29.33862765]
[1645977769802,0.25,91.038,90.942,29.33862765]
[1645977770003,2.99678921,91.038,90.942,29.33862765]
[1645977770206,2.99678921,91.038,90.943,0.25]
[1645977770605,45.31539804,91.075,90.944,112.0659729]
[1645977770606,4.396,91.053,90.944,112.0659729]
[1645977770804,1.79424365,91.059,90.945,10.644]
[1645977771004,4.394,91.058,90.945,6.25]
[1645977771507,2.74678921,91.072,90.95,29.7017]
[1645977771704,157.6199,91.077,90.951,109.65]
[1645977771904,1.73269538,91.076,90.953,109.4]
[1645977772103,1.73269538,91.076,90.956,28.93099804]
[1645977772304,1.73269538,91.076,90.96,13.21]
[1645977772506,1.73269538,91.076,90.981,33.55112364]
[1645977772706,2.74678921,91.075,90.981,33.55112364]
[1645977772905,0.25,91.074,90.981,33.55112364]
[1645977773108,109.4,91.069,90.981,33.55112364]
[1645977773306,2.40299167,91.068,90.981,33.55112364]
[1645977773531,4.394,91.067,90.981,33.55112364]
[1645977773828,0.25,91.066,90.981,33.55112364]
[1645977774025,4.394,91.065,90.981,33.55112364]
[1645977774224,0.25,91.064,90.981,33.55112364]
[1645977774424,4.394,91.063,90.981,33.55112364]
[1645977774625,0.25,91.062,90.981,33.55112364]
[1645977774832,4.394,91.061,90.981,33.55112364]
[1645977775028,2.74678921,91.062,90.981,33.55112364]
[1645977776028,2.74678921,91.073,90.982,0.25]
[1645977776234,6.56384674,91.098,90.982,6.25]
[1645977776428,49.4223,91.128,90.982,6.25]
[1645977776429,6.27354533,91.127,90.983,109.4]
[1645977776728,6.27354533,91.127,90.985,109.4]
[1645977776932,1.88054533,91.127,90.987,109.4]
[1645977777129,1.88054533,91.127,90.986,13.22970122]
[1645977777130,1.88054533,91.127,91.0,13.21]
[1645977777330,1.88054533,91.127,91.02,16.478]
[1645977777531,4.392,91.126,91.021,34.92144006]
[1645977777731,109.4,91.125,91.021,34.92144006]
[1645977777932,109.4,91.119,91.021,34.92144006]
[1645977778133,4.392,91.118,91.021,34.92144006]
[1645977778330,109.4,91.117,91.021,34.92144006]
[1645977778530,109.4,91.115,91.021,34.92144006]
[1645977778731,109.4,91.109,91.021,34.92144006]